fUST/lending_fUST_20260131
["ID","MTS","AMOUNT","RATE_DAILY","PERIOD"]
[404131086,1769870511589,500000.0,0.00035591,30]
[404131087,1769870515440,-592.85387235,0.00013699,2]
[404131088,1769870515463,-500.0,0.00013821,2]
[404131089,1769870531579,1617.0,0.0003,120]
[404131090,1769870532882,-152.63886789,0.00013273,2]
[404131091,1769870548326,700.0,0.0003,120]
[404131092,1769870587982,-500.0,0.00013273,2]
[404131093,1769870588007,-160.9968606,0.00013699,2]
[404131094,1769870588027,-502.30333023,0.00013821,2]
[404131095,1769870688198,500.0,0.00030137,120]
[404131096,1769870698228,500.0,0.00030137,120]
[404131097,1769870716945,500.0,0.00030137,120]
[404131098,1769870734226,500.0,0.00030137,120]
[404131099,1769870743812,200.0,0.00030137,120]
[404131100,1769870753583,10000.0,0.00035593,30]
[404131101,1769870765750,-949.48588857,0.00028255,7]
[404131102,1769870765773,-500.0,0.00028287,7]
[404131103,1769870765794,-707.17238907,0.00028407,7]
[404131104,1769870765817,-679.48044253,0.00028805,7]
[404131105,1769870765840,-506.86844826,0.00029398,7]
[404131106,1769870765862,-151.67761207,0.0003,14]
[404131107,1769870786527,200.0,0.00030137,120]
[404131108,1769870820214,13911.11,0.00035593,30]
[404131109,1769870950187,-527.31612557,0.00013273,2]
[404131110,1769870950211,-5000.0,0.00024953,2]
[404131130,1769871032450,-510.11622201,0.00030355,7]
[404131132,1769871032460,-500.0,0.00032,120]
[404131133,1769871032469,-291.01,0.00032472,32]
[404131135,1769871032479,-336.29,0.0003279,10]
[404131137,1769871032488,-280.24,0.0003279,10]
[404131139,1769871032498,-233.54,0.0003279,10]
[404131141,1769871032507,-194.61,0.0003279,10]
[404131143,1769871032517,-500.0,0.00032798,2]
[404131145,1769871032527,-200.74933937,0.00032798,2]
[404131147,1769871032536,-420.61860627,0.00032798,2]
[404131149,1769871032545,-998.0,0.00032798,2]
[404131151,1769871032554,-3662.92583234,0.00032799,2]
[404131153,1769871032566,-1054.42585719,0.00032799,2]
[404131253,1769871038899,-4237.11762725,0.00032799,2]
[404131255,1769871038913,-3901.38757581,0.00032799,2]
[404131257,1769871038926,-82178.35144362,0.00032799,2]
[404131259,1769871038937,-5283.30117992,0.000328,2]
[404131261,1769871038947,-404.59683959,0.00032899,120]
[404131263,1769871038956,-151.0,0.000329,20]
[404131265,1769871038966,-391.06,0.0003299,3]
[404131267,1769871038975,-181.19991819,0.00032999,7]
[404131269,1769871038985,-882.94488514,0.00032999,7]
[404131271,1769871038994,-119315.29322326,0.00033,2]
[404131273,1769871039004,-186.1220572,0.00033,2]
[404131275,1769871039013,-323.90332824,0.00033,2]
[404131277,1769871039023,-583.02599082,0.00033,2]
[404131279,1769871039032,-61735.47680318,0.00033026,4]
[404131281,1769871039041,-5283.30117986,0.00033099,2]
[404131283,1769871039051,-151.0,0.000332,15]
[404131285,1769871039060,-164.07558496,0.000332,117]
[404131287,1769871039071,-164.07558495,0.000332,117]
[404131289,1769871039086,-151.0,0.000333,13]
[404131290,1769871039107,-181.8034479,0.00033311,2]
[404131292,1769871039120,-400.0,0.00033325,11]
[404131293,1769871039130,-710.0,0.00033359,11]
[404131295,1769871039139,-5283.30117986,0.00033398,2]
[404131297,1769871039148,-168.0,0.0003345,2]
[404131299,1769871039158,-151.0,0.000335,11]
[404131300,1769871039167,-212.71092251,0.00033524,2]
[404131302,1769871039176,-1036.49065035,0.00033524,2]
[404131304,1769871039185,-151.0,0.000336,20]
[404131305,1769871039194,-400.0,0.00033644,11]
[404131307,1769871039203,-400.0,0.00033663,11]
[404131309,1769871039212,-5283.30117986,0.00033698,2]
[404131311,1769871039222,-508.16,0.00033698,2]
[404131313,1769871039231,-567.76,0.00033698,30]
[404131314,1769871039248,-710.0,0.00033703,11]
[404131315,1769871039260,-151.0,0.000338,11]
[404131316,1769871039271,-168.0,0.00033836,2]
[404131317,1769871039281,-336.0,0.00033852,7]
[404131318,1769871039291,-151.0,0.000339,20]
[404131319,1769871039301,-2986.1156909,0.00033967,2]
[404131320,1769871039310,-5283.30117986,0.00033997,2]
[404131321,1769871039320,-1361.62278891,0.00033998,2]
[404131322,1769871039330,-184106.05794869,0.00033998,2]
[404131323,1769871039339,-1000.0,0.00034,2]
[404131324,1769871039352,-100075.070742,0.00034,2]
[404131325,1769871039362,-151.0,0.00034,31]
[404131326,1769871039373,-151.0,0.00034,31]
[404131327,1769871039385,-151.0,0.00034,31]
[404131328,1769871039394,-151.0,0.00034,31]
[404131329,1769871039404,-1937.71,0.00034041,11]
[404131330,1769871039414,-500.0,0.00034067,2]
[404131331,1769871039424,-150.0,0.00034067,2]
[404131332,1769871039434,-150.0,0.00034067,2]
[404131333,1769871039443,-400.0,0.00034072,11]
[404131334,1769871039456,-151.0,0.000341,16]
[404131335,1769871039466,-151.0,0.000342,17]
[404131336,1769871039477,-500.0,0.00034204,2]
[404131337,1769871039487,-150.0,0.00034204,2]
[404131338,1769871039499,-710.0,0.00034294,11]
[404131339,1769871039510,-5283.30117986,0.00034296,2]
[404131340,1769871039520,-888.40323673,0.0003434,2]
[404131341,1769871039530,-500.0,0.00034341,2]
[404131342,1769871039541,-852195.00657438,0.00034341,2]
[404131343,1769871039551,-151.0,0.00034341,31]
[404131344,1769871039560,-151.0,0.00034341,31]
[404131345,1769871039569,-151.0,0.00034341,31]
[404131346,1769871039579,-189.489535,0.00034341,31]
[404131347,1769871039588,-487.0,0.00034341,2]
[404131348,1769871039598,-487.0,0.00034341,2]
[404131349,1769871039607,-487.0,0.00034341,2]
[404131350,1769871039617,-487.0,0.00034341,2]
[404131351,1769871039626,-487.0,0.00034341,2]
[404131352,1769871039637,-487.0,0.00034341,2]
[404131353,1769871039646,-487.0,0.00034341,2]
[404131354,1769871039655,-487.0,0.00034341,2]
[404131355,1769871039665,-487.0,0.00034341,2]
[404131356,1769871039674,-487.0,0.00034341,2]
[404131357,1769871039684,-487.0,0.00034341,2]
[404131358,1769871039694,-487.0,0.00034341,2]
[404131359,1769871039703,-624.86,0.00034341,2]
[404131360,1769871039713,-2986.11569089,0.00034349,2]
[404131361,1769871039723,-4699.74,0.000344,14]
[404131362,1769871039732,-153.76,0.000344,30]
[404131363,1769871039741,-710.0,0.00034453,11]
[404131364,1769871039751,-500.0,0.00034478,2]
[404131365,1769871039760,-336.0,0.0003452,2]
[404131366,1769871039771,-567.76,0.0003452,31]
[404131367,1769871039780,-5283.30117986,0.00034595,2]
[404131368,1769871039790,-522.60105806,0.00034615,2]
[404131369,1769871039799,-336.0,0.0003464,2]
[404131370,1769871039809,-517.31512184,0.00034687,120]
[404131371,1769871039818,-2986.11569089,0.0003473,2]
[404131372,1769871039829,-200.0,0.000348,120]
[404131373,1769871039840,-336.0,0.00034892,120]
[404131374,1769871039850,-5283.30117986,0.00034895,2]
[404131375,1769871039859,-332.02845561,0.00034897,2]
[404131376,1769871039869,-1617.89712454,0.00034897,2]
[404131377,1769871039879,-486.38522995,0.000349,2]
[404131378,1769871039888,-1500.0,0.000349,18]
[404131379,1769871039898,-168.0,0.00034988,2]
[404131380,1769871039907,-1000.0,0.00035,120]
[404131381,1769871039916,-600.0,0.00035027,30]
[404131382,1769871039929,-168.0,0.00035092,2]
[404131383,1769871039938,-2986.11569089,0.00035112,2]
[404131384,1769871039947,-151.0,0.00035112,31]
[404131385,1769871039957,-151.0,0.00035112,31]
[404131386,1769871039967,-151.0,0.00035112,31]
[404131387,1769871039976,-200.0,0.00035112,7]
[404131388,1769871039985,-200.0,0.00035112,7]
[404131389,1769871039994,-200.0,0.00035112,7]
[404131390,1769871040003,-200.0,0.00035112,7]
[404131391,1769871040012,-200.0,0.00035112,7]
[404131392,1769871040021,-200.0,0.00035112,7]
[404131393,1769871040032,-500.0,0.00035138,120]
[404131394,1769871040042,-500.0,0.00035138,120]
[404131395,1769871040052,-500.0,0.00035138,120]
[404131396,1769871040061,-500.0,0.00035138,120]
[404131397,1769871040071,-505.97227165,0.00035138,120]
[404131398,1769871040079,-500.0,0.00035138,120]
[404131399,1769871040088,-500.0,0.00035138,120]
[404131400,1769871040100,-500.0,0.00035138,120]
[404131401,1769871040109,-500.0,0.00035138,120]
[404131402,1769871040118,-500.0,0.00035138,120]
[404131403,1769871040127,-500.0,0.00035138,120]
[404131404,1769871040135,-500.0,0.00035138,120]
[404131405,1769871040144,-500.0,0.00035138,120]
[404131407,1769871040153,-500.0,0.00035138,120]
[404131408,1769871040162,-500.0,0.00035138,120]
[404131409,1769871040171,-500.0,0.00035138,120]
[404131410,1769871040180,-500.0,0.00035138,120]
[404131411,1769871040189,-500.0,0.00035138,120]
[404131412,1769871040198,-500.0,0.00035138,120]
[404131413,1769871040207,-500.0,0.00035138,120]
[404131414,1769871040216,-500.0,0.00035138,120]
[404131415,1769871040225,-500.0,0.00035138,120]
[404131416,1769871040234,-500.0,0.00035138,120]
[404131417,1769871040244,-500.0,0.00035138,120]
[404131418,1769871040253,-640.58071433,0.00035138,120]
[404131420,1769871040262,-500.0,0.00035138,2]
[404131421,1769871040271,-504.603097,0.00035138,2]
[404131422,1769871040279,-5283.30117986,0.00035194,2]
[404131424,1769871040289,-968.83,0.000352,13]
[404131427,1769871040297,-200.0,0.00035243,120]
[404131430,1769871040306,-168.0,0.00035289,2]
[404131432,1769871040315,-165.75,0.000353,2]
[404131433,1769871040324,-3000.0,0.000353,30]
[404131434,1769871040333,-3875.32,0.000353,13]
[404131435,1769871040342,-160.0,0.00035312,3]
[404131436,1769871040352,-160.0,0.00035312,5]
[404131437,1769871040361,-722.02,0.00035316,60]
[404131438,1769871040372,-343.0,0.00035318,2]
[404131439,1769871040383,-2000.0,0.00035342,120]
[404131440,1769871040392,-1000.0,0.00035342,120]
[404131441,1769871040401,-567.76,0.00035342,32]
[404131442,1769871040410,-1450.0,0.0003536,30]
[404131443,1769871040419,-208.71993813,0.00035382,30]
[404131444,1769871040428,-150.0,0.00035393,30]
[404131445,1769871040437,-165.23,0.00035393,30]
[404131446,1769871040449,-351.597828,0.000354,10]
[404131447,1769871040459,-1500.0,0.000354,18]
[404131449,1769871040468,-151.40915451,0.00035403,2]
[404131451,1769871040477,-151.40915451,0.00035403,2]
[404131452,1769871040486,-151.40915451,0.00035403,2]
[404131453,1769871040496,-151.40915451,0.00035403,2]
[404131454,1769871040505,-151.40915451,0.00035403,2]
[404131455,1769871040514,-155.0,0.00035403,2]
[404131456,1769871040524,-20550.0,0.00035404,30]
[404131457,1769871040533,-151.0,0.00035404,31]
[404131458,1769871040542,-151.0,0.00035404,31]
[404131459,1769871040551,-151.0,0.00035404,31]
[404131460,1769871040561,-722.02,0.00035416,60]
[404131461,1769871040570,-152.97457575,0.00035455,2]
[404131462,1769871040580,-152.0,0.00035455,14]
[404131463,1769871040589,-152.0,0.00035455,14]
[404131464,1769871040600,-151.0,0.00035455,14]
[404131465,1769871040614,-152.0,0.00035455,14]
[404131466,1769871040623,-151.0,0.00035455,14]
[404131467,1769871040633,-152.0,0.00035455,14]
[404131468,1769871040791,-294.40112321,0.00035455,14]
[404131469,1769871040801,-279.38550082,0.00035455,14]
[404131470,1769871040811,-380.511612,0.00035456,60]
[404131471,1769871040820,-266.358128,0.00035456,60]
[404131473,1769871040830,-215.74055685,0.00035456,30]
[404131474,1769871040839,-200.0,0.00035465,120]
[404131475,1769871040849,-1000.0,0.00035479,120]
[404131477,1769871040858,-5283.30117986,0.00035493,2]
[404131479,1769871040867,-2986.11569089,0.00035493,2]
[404131481,1769871040877,-164.07558495,0.00035493,120]
[404131483,1769871040886,-780.0,0.000355,2]
[404131485,1769871040894,-722.02,0.00035516,60]
[404131486,1769871040903,-5138.62,0.00035591,30]
[404131488,1769871040912,-151.0,0.00035592,31]
[404131490,1769871040922,-151.0,0.00035592,31]
[404131492,1769871040931,-151.0,0.00035592,31]
[404131493,1769871040940,-2000.0,0.00035592,30]
[404131494,1769871040949,-1888.0,0.00035592,30]
[404131495,1769871040959,-229.36479835,0.00035592,15]
[404131496,1769871040968,-244.46514687,0.00035592,10]
[404131497,1769871040977,-197.72999999,0.00035592,12]
[404131498,1769871040987,-1112.53224155,0.00035592,10]
[404131499,1769871040996,-200.0,0.00035592,10]
[404131500,1769871041005,-1565.31403882,0.00035592,14]
[404131502,1769871041014,-826.51267351,0.00035592,15]
[404131503,1769871041023,-1546.11740676,0.00035592,15]
[404131505,1769871041032,-158.0,0.00035592,10]
[404131508,1769871041041,-1181.59147824,0.00035592,15]
[404131510,1769871041050,-328.57287049,0.00035592,2]
[404131511,1769871041065,-245.21433043,0.00035592,10]
[404131512,1769871041074,-92189.90327472,0.00035592,2]
[404131513,1769871041084,-300.0,0.00035592,2]
[404131514,1769871041095,-22888.83161499,0.00035592,2]
[404131515,1769871041108,-3922.4883003,0.00035592,2]
[404131516,1769871041118,-817.90078901,0.00035592,2]
[404131517,1769871041128,-260.78712638,0.00035592,2]
[404131518,1769871041137,-330.23197963,0.00035592,2]
[404131519,1769871041146,-294.72415654,0.00035592,2]
[404131520,1769871041157,-52234.76278532,0.00035592,2]
[404131521,1769871041167,-643.53505278,0.00035592,2]
[404131522,1769871041176,-1375.2910764,0.00035592,2]
[404131523,1769871041186,-158.16441478,0.00035592,2]
[404131524,1769871041196,-709.48923541,0.00035592,2]
[404131525,1769871041206,-21787.48974841,0.00035592,2]
[404131526,1769871041222,-6361.74728496,0.00035592,2]
[404131527,1769871041231,-159.17358131,0.00035592,2]
[404131528,1769871041242,-1734.18339735,0.00035592,2]
[404131529,1769871041252,-7557.0953267,0.00035592,2]
[404131530,1769871041265,-512.50611098,0.00035592,2]
[404131531,1769871041274,-185.65937076,0.00035592,2]
[404131532,1769871041284,-472.38937443,0.00035592,2]
[404131533,1769871041294,-498.0,0.00035592,7]
[404131534,1769871041303,-30747.84408149,0.00035592,2]
[404131535,1769871041313,-190.96955262,0.00035592,2]
[404131536,1769871041323,-1206.51722842,0.00035592,2]
[404131537,1769871041335,-1410.24328309,0.00035592,2]
[404131538,1769871041345,-657.398341,0.00035592,2]
[404131539,1769871041360,-2920.0,0.00035592,2]
[404131540,1769871041373,-156.42646848,0.00035592,7]
[404131541,1769871041387,-200.04108998,0.00035592,2]
[404131542,1769871041396,-203.26380221,0.00035592,2]
[404131543,1769871041406,-3178.21395943,0.00035592,2]
[404131544,1769871041416,-168.15638699,0.00035592,2]
[404131545,1769871041426,-178878.422457,0.00035592,2]
[404131546,1769871041435,-151.77284351,0.00035592,2]
[404131547,1769871041446,-260.99929695,0.00035592,2]
[404131548,1769871041455,-178.88647616,0.00035592,7]
[404131549,1769871041465,-3803.39504517,0.00035592,2]
[404131550,1769871041474,-675.42680548,0.00035592,2]
[404131551,1769871041484,-1020.577805,0.00035592,7]
[404131552,1769871041493,-1676.28014177,0.00035592,2]
[404131553,1769871041502,-326.75074511,0.00035592,2]
[404131554,1769871041511,-700.35582819,0.00035592,5]
[404131555,1769871041519,-150.0,0.00035592,7]
[404131556,1769871041529,-25000.0,0.00035592,2]
[404131557,1769871041538,-1030.10926609,0.00035592,10]
[404131558,1769871041547,-1995.0,0.00035592,5]
[404131559,1769871041556,-173298.62771791,0.00035592,5]
[404131560,1769871041566,-389.15717138,0.00035592,2]
[404131561,1769871041575,-150.0,0.00035592,2]
[404131562,1769871041585,-2808.02892775,0.00035592,7]
[404131563,1769871041594,-2547.90860202,0.00035592,7]
[404131564,1769871041607,-701.8827248,0.00035592,2]
[404131565,1769871041616,-3467.59666394,0.00035592,7]
[404131566,1769871041625,-155.0,0.00035592,14]
[404131567,1769871041634,-71008.89133514,0.00035592,7]
[404131568,1769871041644,-258.44225485,0.00035592,2]
[404131569,1769871041654,-1908.91,0.00035592,3]
[404131570,1769871041663,-1908.91,0.00035592,3]
[404131571,1769871041673,-1908.91,0.00035592,3]
[404131572,1769871041682,-1908.91,0.00035592,3]
[404131573,1769871041694,-1908.91,0.00035592,3]
[404131574,1769871041704,-1784.52,0.00035592,3]
[404131575,1769871041714,-1908.91,0.00035592,3]
[404131576,1769871041723,-1784.52,0.00035592,3]
[404131577,1769871041732,-1908.91,0.00035592,3]
[404131578,1769871041742,-1784.52,0.00035592,3]
[404131579,1769871041751,-1908.91,0.00035592,3]
[404131580,1769871041761,-1784.52,0.00035592,3]
[404131581,1769871041770,-1908.91,0.00035592,3]
[404131582,1769871041780,-1784.52,0.00035592,3]
[404131583,1769871041790,-1908.91,0.00035592,3]
[404131584,1769871041801,-1784.52,0.00035592,3]
[404131585,1769871041810,-1784.52,0.00035592,3]
[404131586,1769871041819,-1908.91,0.00035592,3]
[404131587,1769871041829,-1908.91,0.00035592,3]
[404131588,1769871041839,-1784.52,0.00035592,3]
[404131589,1769871041851,-1908.91,0.00035592,3]
[404131590,1769871041861,-1784.52,0.00035592,3]
[404131591,1769871041871,-1908.91,0.00035592,3]
[404131592,1769871041882,-1784.52,0.00035592,3]
[404131593,1769871041891,-1908.91,0.00035592,3]
[404131594,1769871041901,-1784.52,0.00035592,3]
[404131595,1769871041910,-1908.91,0.00035592,3]
[404131596,1769871041920,-1784.52,0.00035592,3]
[404131597,1769871041931,-1784.52,0.00035592,3]
[404131598,1769871041942,-1908.91,0.00035592,3]
[404131599,1769871041952,-1784.52,0.00035592,3]
[404131600,1769871041962,-1908.91,0.00035592,3]
[404131601,1769871041972,-1784.52,0.00035592,3]
[404131602,1769871041983,-1908.91,0.00035592,3]
[404131603,1769871041995,-1784.52,0.00035592,3]
[404131604,1769871042006,-1908.91,0.00035592,3]
[404131605,1769871042015,-1784.52,0.00035592,3]
[404131606,1769871042024,-1908.91,0.00035592,3]
[404131607,1769871042034,-1784.52,0.00035592,3]
[404131608,1769871042043,-1908.91,0.00035592,3]
[404131609,1769871042052,-1784.52,0.00035592,3]
[404131610,1769871042062,-1908.91,0.00035592,3]
[404131611,1769871042071,-1784.52,0.00035592,3]
[404131612,1769871042081,-1909.0776255,0.00035592,3]
[404131613,1769871042091,-1784.52,0.00035592,3]
[404131614,1769871042102,-1784.52,0.00035592,3]
[404131615,1769871042111,-1784.52,0.00035592,3]
[404131616,1769871042120,-1784.63572626,0.00035592,3]
[404131617,1769871042130,-500.0,0.00035592,2]
[404131618,1769871042139,-334.25818531,0.00035592,2]
[404131619,1769871042150,-399.999999,0.00035592,7]
[404131620,1769871042160,-290.51319343,0.00035592,14]
[404131621,1769871042171,-500.88702136,0.00035592,7]
[404131622,1769871042182,-500.89070824,0.00035592,8]
[404131623,1769871042192,-500.0,0.00035592,2]
[404131624,1769871042202,-2744.54061477,0.00035592,7]
[404131625,1769871042211,-500.0,0.00035592,3]
[404131626,1769871042220,-500.0,0.00035592,3]
[404131627,1769871042230,-500.0,0.00035592,3]
[404131628,1769871042241,-500.0,0.00035592,3]
[404131629,1769871042253,-500.0,0.00035592,3]
[404131630,1769871042265,-500.0,0.00035592,3]
[404131631,1769871042276,-221.38,0.00035592,3]
[404131632,1769871042288,-500.0,0.00035592,12]
[404131633,1769871042299,-500.0,0.00035592,12]
[404131634,1769871042311,-602.79559402,0.00035592,12]
[404131635,1769871042323,-500.0,0.00035592,3]
[404131636,1769871042333,-500.0,0.00035592,3]
[404131637,1769871042343,-500.0,0.00035592,3]
[404131638,1769871042356,-500.0,0.00035592,3]
[404131639,1769871042370,-500.0,0.00035592,3]
[404131640,1769871042381,-260.8625319,0.00035592,3]
[404131641,1769871042392,-1028.7,0.00035592,3]
[404131642,1769871042403,-1028.7,0.00035592,3]
[404131643,1769871042415,-1028.7,0.00035592,3]
[404131644,1769871042426,-1028.7,0.00035592,3]
[404131645,1769871042437,-1028.7,0.00035592,3]
[404131646,1769871042449,-1028.7,0.00035592,3]
[404131647,1769871042461,-1028.7,0.00035592,3]
[404131648,1769871042472,-1028.7,0.00035592,3]
[404131649,1769871042483,-1028.7,0.00035592,3]
[404131650,1769871042494,-1028.7,0.00035592,3]
[404131651,1769871042505,-1028.7,0.00035592,3]
[404131652,1769871042515,-1028.7,0.00035592,3]
[404131653,1769871042526,-1028.7,0.00035592,3]
[404131654,1769871042537,-1028.7,0.00035592,3]
[404131655,1769871042549,-1028.7,0.00035592,3]
[404131656,1769871042560,-1028.7,0.00035592,3]
[404131657,1769871042571,-1028.7,0.00035592,3]
[404131658,1769871042582,-1028.7,0.00035592,3]
[404131659,1769871042594,-1028.7,0.00035592,3]
[404131660,1769871042606,-1028.7,0.00035592,3]
[404131661,1769871042617,-1028.7,0.00035592,3]
[404131662,1769871042627,-1028.7,0.00035592,3]
[404131663,1769871042638,-1028.7,0.00035592,3]
[404131664,1769871042649,-1028.77091697,0.00035592,3]
[404131665,1769871042660,-500.0,0.00035592,3]
[404131666,1769871042671,-500.0,0.00035592,3]
[404131667,1769871042682,-500.0,0.00035592,3]
[404131668,1769871042693,-500.0,0.00035592,3]
[404131669,1769871042703,-500.0,0.00035592,3]
[404131670,1769871042714,-500.0,0.00035592,3]
[404131671,1769871042724,-500.0,0.00035592,3]
[404131672,1769871042735,-500.0,0.00035592,3]
[404131673,1769871042747,-500.0,0.00035592,3]
[404131674,1769871042758,-500.0,0.00035592,3]
[404131675,1769871042769,-500.0,0.00035592,3]
[404131676,1769871042781,-500.0,0.00035592,3]
[404131677,1769871042792,-500.0,0.00035592,3]
[404131678,1769871042803,-500.0,0.00035592,3]
[404131679,1769871042815,-500.0,0.00035592,3]
[404131680,1769871042824,-500.0,0.00035592,3]
[404131681,1769871042834,-500.0,0.00035592,3]
[404131682,1769871042844,-500.0,0.00035592,3]
[404131683,1769871042857,-500.0,0.00035592,3]
[404131684,1769871042868,-500.0,0.00035592,3]
[404131685,1769871042878,-500.0,0.00035592,3]
[404131686,1769871042888,-500.0,0.00035592,3]
[404131687,1769871042901,-582.55,0.00035592,3]
[404131688,1769871042911,-500.0,0.00035592,3]
[404131689,1769871042923,-500.0,0.00035592,3]
[404131690,1769871042933,-500.0,0.00035592,3]
[404131691,1769871042943,-500.0,0.00035592,3]
[404131692,1769871042954,-500.0,0.00035592,3]
[404131693,1769871042965,-500.0,0.00035592,3]
[404131694,1769871042976,-500.0,0.00035592,3]
[404131695,1769871042986,-500.0,0.00035592,3]
[404131696,1769871042996,-352.85,0.00035592,3]
[404131697,1769871043007,-500.0,0.00035592,7]
[404131698,1769871043018,-500.0,0.00035592,2]
[404131700,1769871043029,-516.96,0.00035592,3]
[404131702,1769871043040,-516.96,0.00035592,3]
[404131704,1769871043051,-516.96,0.00035592,3]
[404131705,1769871043063,-516.96,0.00035592,3]
[404131706,1769871043074,-516.96,0.00035592,3]
[404131707,1769871043085,-516.96,0.00035592,3]
[404131708,1769871043096,-516.96,0.00035592,3]
[404131709,1769871043106,-516.96,0.00035592,3]
[404131710,1769871043116,-516.96,0.00035592,3]
[404131711,1769871043126,-516.96,0.00035592,3]
[404131712,1769871043136,-516.96,0.00035592,3]
[404131713,1769871043146,-516.96,0.00035592,3]
[404131714,1769871043156,-516.96,0.00035592,3]
[404131715,1769871043166,-516.96,0.00035592,3]
[404131716,1769871043176,-516.96,0.00035592,3]
[404131717,1769871043186,-516.96,0.00035592,3]
[404131718,1769871043197,-500.0,0.00035592,2]
[404131719,1769871043208,-500.0,0.00035592,3]
[404131720,1769871043220,-500.0,0.00035592,3]
[404131721,1769871043231,-500.0,0.00035592,3]
[404131722,1769871043242,-500.0,0.00035592,3]
[404131723,1769871043253,-500.0,0.00035592,3]
[404131724,1769871043263,-500.0,0.00035592,3]
[404131725,1769871043273,-500.0,0.00035592,3]
[404131726,1769871043283,-500.0,0.00035592,3]
[404131727,1769871043292,-500.0,0.00035592,3]
[404131728,1769871043303,-500.0,0.00035592,3]
[404131729,1769871043314,-500.0,0.00035592,3]
[404131730,1769871043325,-500.0,0.00035592,3]
[404131731,1769871043335,-500.0,0.00035592,3]
[404131732,1769871043345,-500.0,0.00035592,3]
[404131733,1769871043359,-500.0,0.00035592,3]
[404131734,1769871043373,-500.0,0.00035592,3]
[404131735,1769871043386,-500.0,0.00035592,3]
[404131736,1769871043396,-510.34,0.00035592,3]
[404131737,1769871043406,-500.46461464,0.00035592,14]
[404131738,1769871043417,-500.0,0.00035592,7]
[404131739,1769871043427,-500.0,0.00035592,7]
[404131740,1769871043437,-500.0,0.00035592,8]
[404131741,1769871043449,-288.48053619,0.00035592,14]
[404131742,1769871043461,-500.0,0.00035592,3]
[404131743,1769871043471,-500.0,0.00035592,3]
[404131744,1769871043481,-500.0,0.00035592,3]
[404131745,1769871043491,-500.0,0.00035592,3]
[404131746,1769871043502,-500.0,0.00035592,3]
[404131747,1769871043514,-500.0,0.00035592,3]
[404131748,1769871043525,-500.0,0.00035592,3]
[404131749,1769871043535,-500.0,0.00035592,3]
[404131750,1769871043547,-500.0,0.00035592,3]
[404131751,1769871043557,-166.62,0.00035592,3]
[404131752,1769871043567,-500.0,0.00035592,7]
[404131753,1769871043578,-500.06739194,0.00035592,7]
[404131754,1769871043588,-325.00068344,0.00035592,8]
[404131755,1769871043598,-500.66138922,0.00035592,12]
[404131756,1769871043608,-500.0,0.00035592,3]
[404131757,1769871043618,-500.0,0.00035592,3]
[404131758,1769871043629,-500.0,0.00035592,3]
[404131759,1769871043640,-500.0,0.00035592,3]
[404131760,1769871043651,-500.0,0.00035592,3]
[404131761,1769871043662,-500.0,0.00035592,3]
[404131762,1769871043672,-500.0,0.00035592,3]
[404131763,1769871043684,-500.0,0.00035592,3]
[404131764,1769871043694,-330.33082977,0.00035592,3]
[404131765,1769871043704,-502.66275735,0.00035592,2]
[404131766,1769871043714,-501.41092264,0.00035592,7]
[404131767,1769871043724,-501.46036006,0.00035592,8]
[404131768,1769871043734,-642.88961832,0.00035592,12]
[404131769,1769871043745,-500.0,0.00035592,3]